[Event "Titled Tuesday Blitz July 4 Late 2023"]
[White "Lenderman, Aleksandr"]
[Black "Silva Lucena, Cristian"]
[WhiteFideId "2021285"]
[BlackFideId "2232588"]
[WhiteElo "2896"]
[BlackElo "2401"]
[Result "1-0"]
[Round "2"]
[TimeControl "180+2"]
[Date "2023.07.04"]
[WhiteClock "0:01:36"]
[BlackClock "0:00:07"]
[Board "105"]

1. Nf3 {[%clk 0:03:00]}  Nf6 {[%clk 0:02:58]} 2. b3 {[%clk 0:02:59]}  g6 {[%clk 0:02:57]} 3. Bb2 {[%clk 0:02:56]}  Bg7 {[%clk 0:02:58]} 4. g3 {[%clk 0:02:56]}  O-O {[%clk 0:02:55]} 5. Bg2 {[%clk 0:02:56]}  d6 {[%clk 0:02:55]} 6. d4 {[%clk 0:02:56]}  Nc6 {[%clk 0:02:53]} 7. O-O {[%clk 0:02:55]}  e5 {[%clk 0:02:50]} 8. dxe5 {[%clk 0:02:55]}  Ng4 {[%clk 0:02:50]} 9. c4 {[%clk 0:02:55]}  Ngxe5 {[%clk 0:02:49]} 10. Nc3 {[%clk 0:02:55]}  Nxf3+ {[%clk 0:02:46]} 11. Bxf3 {[%clk 0:02:55]}  Bh3 {[%clk 0:02:46]} 12. Re1 {[%clk 0:02:55]}  Re8 {[%clk 0:02:46]} 13. Qd2 {[%clk 0:02:55]}  h5 {[%clk 0:02:35]} 14. Nd5 {[%clk 0:02:52]}  Ne5 {[%clk 0:02:28]} 15. Bh1 {[%clk 0:02:51]}  c6 {[%clk 0:02:28]} 16. Nc3 {[%clk 0:02:47]}  Ng4 {[%clk 0:02:04]} 17. Rad1 {[%clk 0:02:40]}  Qb6 {[%clk 0:02:04]} 18. e3 {[%clk 0:02:39]}  Rad8 {[%clk 0:02:00]} 19. Na4 {[%clk 0:02:39]}  Qc7 {[%clk 0:01:43]} 20. Bxg7 {[%clk 0:02:32]}  Kxg7 {[%clk 0:01:44]} 21. Qd4+ {[%clk 0:02:32]}  Kg8 {[%clk 0:01:34]} 22. Qxa7 {[%clk 0:02:31]}  Qe7 {[%clk 0:01:21]} 23. Qd4 {[%clk 0:02:30]}  Qe6 {[%clk 0:01:14]} 24. Nc3 {[%clk 0:02:26]}  h4 {[%clk 0:01:09]} 25. Qf4 {[%clk 0:02:19]}  hxg3 {[%clk 0:01:04]} 26. hxg3 {[%clk 0:02:19]}  Ne5 {[%clk 0:01:01]} 27. Ne4 {[%clk 0:02:18]}  Kg7 {[%clk 0:00:59]} 28. Ng5 {[%clk 0:02:18]}  Qg4 {[%clk 0:00:53]} 29. Qxg4 {[%clk 0:02:16]}  Bxg4 {[%clk 0:00:53]} 30. f3 {[%clk 0:02:17]}  Bc8 {[%clk 0:00:47]} 31. f4 {[%clk 0:02:13]}  Ng4 {[%clk 0:00:42]} 32. e4 {[%clk 0:02:13]}  Rh8 {[%clk 0:00:32]} 33. Bg2 {[%clk 0:02:12]}  Nf6 {[%clk 0:00:27]} 34. b4 {[%clk 0:02:03]}  Be6 {[%clk 0:00:24]} 35. Rd4 {[%clk 0:01:56]}  Nh5 {[%clk 0:00:22]} 36. Kf2 {[%clk 0:01:55]}  Ra8 {[%clk 0:00:22]} 37. Re2 {[%clk 0:01:54]}  Ra3 {[%clk 0:00:22]} 38. Bf3 {[%clk 0:01:52]}  Nf6 {[%clk 0:00:19]} 39. Nxe6+ {[%clk 0:01:52]}  fxe6 {[%clk 0:00:19]} 40. Rxd6 {[%clk 0:01:52]}  Rh2+ {[%clk 0:00:18]} 41. Kg1 {[%clk 0:01:52]}  Rxe2 {[%clk 0:00:17]} 42. Bxe2 {[%clk 0:01:52]}  Rxg3+ {[%clk 0:00:18]} 43. Kh2 {[%clk 0:01:52]}  Nxe4 {[%clk 0:00:17]} 44. Rxe6 {[%clk 0:01:51]}  Re3 {[%clk 0:00:17]} 45. Bd1 {[%clk 0:01:45]}  Rd3 {[%clk 0:00:16]} 46. Rxe4 {[%clk 0:01:44]}  Rxd1 {[%clk 0:00:15]} 47. Re7+ {[%clk 0:01:44]}  Kf6 {[%clk 0:00:16]} 48. Rxb7 {[%clk 0:01:45]}  Rd2+ {[%clk 0:00:16]} 49. Kg3 {[%clk 0:01:45]}  Rxa2 {[%clk 0:00:16]} 50. Rc7 {[%clk 0:01:41]}  Kf5 {[%clk 0:00:16]} 51. Rxc6 {[%clk 0:01:40]}  Ra3+ {[%clk 0:00:17]} 52. Kf2 {[%clk 0:01:40]}  Kxf4 {[%clk 0:00:17]} 53. Rxg6 {[%clk 0:01:41]}  Ra2+ {[%clk 0:00:18]} 54. Ke1 {[%clk 0:01:41]}  Ke4 {[%clk 0:00:16]} 55. b5 {[%clk 0:01:38]}  Kd4 {[%clk 0:00:16]} 56. Rc6 {[%clk 0:01:38]}  Rb2 {[%clk 0:00:15]} 57. b6 {[%clk 0:01:38]}  Rb4 {[%clk 0:00:13]} 58. c5 {[%clk 0:01:37]}  Kd5 {[%clk 0:00:13]} 59. Rc7 {[%clk 0:01:37]}  Rb2 {[%clk 0:00:12]} 60. b7 {[%clk 0:01:37]}  Rb3 {[%clk 0:00:11]} 61. c6 {[%clk 0:01:36]}  Kd6 {[%clk 0:00:07]} 62. Rc8 {[%clk 0:01:36]} 1-0


[Site "https://www.chess.com"]

[Event "Titled Tuesday Blitz July 4 Late 2023"]
[White "Ibarra Jerez, Jose Carlos"]
[Black "Urbina Perez, Juan Antonio"]
[WhiteFideId "2226332"]
[BlackFideId "2217368"]
[WhiteElo "2866"]
[BlackElo "2401"]
[Result "1-0"]
[Round "2"]
[TimeControl "180+2"]
[Date "2023.07.04"]
[WhiteClock "0:00:26"]
[BlackClock "0:00:00"]
[Board "106"]

1. e4 {[%clk 0:03:00]}  e6 {[%clk 0:02:55]} 2. d4 {[%clk 0:03:00]}  d5 {[%clk 0:02:53]} 3. Nc3 {[%clk 0:03:01]}  Bb4 {[%clk 0:02:50]} 4. Ne2 {[%clk 0:03:00]}  dxe4 {[%clk 0:02:44]} 5. a3 {[%clk 0:02:59]}  Be7 {[%clk 0:02:43]} 6. Nxe4 {[%clk 0:02:59]}  Nd7 {[%clk 0:02:43]} 7. g3 {[%clk 0:02:50]}  Ngf6 {[%clk 0:02:41]} 8. N4c3 {[%clk 0:02:50]}  O-O {[%clk 0:02:34]} 9. Bg2 {[%clk 0:02:50]}  c5 {[%clk 0:02:35]} 10. O-O {[%clk 0:02:46]}  a6 {[%clk 0:02:32]} 11. d5 {[%clk 0:02:35]}  Nxd5 {[%clk 0:02:27]} 12. Nxd5 {[%clk 0:02:36]}  exd5 {[%clk 0:02:27]} 13. Qxd5 {[%clk 0:02:34]}  Nf6 {[%clk 0:02:27]} 14. Qb3 {[%clk 0:02:12]}  Ra7 {[%clk 0:02:14]} 15. Nf4 {[%clk 0:02:04]}  b5 {[%clk 0:02:09]} 16. c4 {[%clk 0:02:00]}  Qb6 {[%clk 0:01:37]} 17. Re1 {[%clk 0:01:54]}  Bd6 {[%clk 0:01:28]} 18. Bd2 {[%clk 0:01:48]}  Bb7 {[%clk 0:01:22]} 19. Nd5 {[%clk 0:01:24]}  Nxd5 {[%clk 0:01:18]} 20. cxd5 {[%clk 0:01:25]}  Bc8 {[%clk 0:01:02]} 21. Rac1 {[%clk 0:01:20]}  c4 {[%clk 0:00:57]} 22. Qf3 {[%clk 0:01:18]}  Qd8 {[%clk 0:00:56]} 23. Be3 {[%clk 0:01:17]}  Re7 {[%clk 0:00:54]} 24. h4 {[%clk 0:01:02]}  Rfe8 {[%clk 0:00:51]} 25. Red1 {[%clk 0:01:01]}  Qc7 {[%clk 0:00:46]} 26. Bg5 {[%clk 0:00:58]}  f6 {[%clk 0:00:44]} 27. Be3 {[%clk 0:00:58]}  Bd7 {[%clk 0:00:40]} 28. Bd4 {[%clk 0:00:55]}  Qc8 {[%clk 0:00:37]} 29. Qc3 {[%clk 0:00:53]}  Be5 {[%clk 0:00:32]} 30. d6 {[%clk 0:00:45]}  Bxd4 {[%clk 0:00:22]} 31. Rxd4 {[%clk 0:00:46]}  Re5 {[%clk 0:00:19]} 32. b3 {[%clk 0:00:38]}  Kf8 {[%clk 0:00:09]} 33. bxc4 {[%clk 0:00:37]}  bxc4 {[%clk 0:00:10]} 34. Rxc4 {[%clk 0:00:36]}  Qb8 {[%clk 0:00:08]} 35. Rc7 {[%clk 0:00:36]}  Qb5 {[%clk 0:00:05]} 36. Rb7 {[%clk 0:00:26]}  Qa4 {[%clk 0:00:00]} 37. Qc7 {[%clk 0:00:26]} 1-0


[Site "https://www.chess.com"]

[Event "Titled Tuesday Blitz July 4 Late 2023"]
[White "Elsa167"]
[Black "Vega Gutierrez, Sabrina"]
[BlackFideId "2219026"]
[WhiteElo "2852"]
[BlackElo "2400"]
[Result "1-0"]
[Round "2"]
[TimeControl "180+2"]
[Date "2023.07.04"]
[WhiteClock "0:01:39"]
[BlackClock "0:00:03"]
[Board "108"]

1. e4 {[%clk 0:03:00]}  c5 {[%clk 0:02:59]} 2. Nf3 {[%clk 0:03:01]}  Nc6 {[%clk 0:02:59]} 3. d4 {[%clk 0:03:01]}  cxd4 {[%clk 0:02:59]} 4. Nxd4 {[%clk 0:03:02]}  Nf6 {[%clk 0:03:00]} 5. Nc3 {[%clk 0:03:02]}  e5 {[%clk 0:03:00]} 6. Ndb5 {[%clk 0:03:03]}  d6 {[%clk 0:03:01]} 7. Bg5 {[%clk 0:03:03]}  a6 {[%clk 0:03:01]} 8. Na3 {[%clk 0:03:03]}  b5 {[%clk 0:03:02]} 9. Nd5 {[%clk 0:03:03]}  Be7 {[%clk 0:03:00]} 10. Bxf6 {[%clk 0:03:03]}  Bxf6 {[%clk 0:03:01]} 11. c3 {[%clk 0:03:04]}  Ne7 {[%clk 0:03:01]} 12. Nxe7 {[%clk 0:02:55]}  Bxe7 {[%clk 0:02:57]} 13. Nc2 {[%clk 0:02:55]}  Bb7 {[%clk 0:02:57]} 14. Bd3 {[%clk 0:02:54]}  d5 {[%clk 0:02:55]} 15. Qe2 {[%clk 0:02:47]}  dxe4 {[%clk 0:01:57]} 16. Bxe4 {[%clk 0:02:46]}  Bxe4 {[%clk 0:01:58]} 17. Qxe4 {[%clk 0:02:47]}  O-O {[%clk 0:01:55]} 18. Ne3 {[%clk 0:02:47]}  Bc5 {[%clk 0:01:44]} 19. Rd1 {[%clk 0:02:43]}  Qg5 {[%clk 0:01:40]} 20. h4 {[%clk 0:02:33]}  Qf4 {[%clk 0:01:35]} 21. Qxf4 {[%clk 0:02:27]}  exf4 {[%clk 0:01:36]} 22. Nd5 {[%clk 0:02:27]}  Rfe8+ {[%clk 0:01:35]} 23. Kf1 {[%clk 0:02:19]}  Rad8 {[%clk 0:01:33]} 24. Rh3 {[%clk 0:02:19]}  Kf8 {[%clk 0:00:30]} 25. Rhd3 {[%clk 0:02:19]}  Re4 {[%clk 0:00:30]} 26. f3 {[%clk 0:02:06]}  Ra4 {[%clk 0:00:20]} 27. a3 {[%clk 0:02:02]}  h6 {[%clk 0:00:12]} 28. Nb4 {[%clk 0:01:58]}  Rxd3 {[%clk 0:00:11]} 29. Rxd3 {[%clk 0:01:57]}  a5 {[%clk 0:00:12]} 30. Nc6 {[%clk 0:01:51]}  g5 {[%clk 0:00:11]} 31. hxg5 {[%clk 0:01:50]}  hxg5 {[%clk 0:00:11]} 32. Rd5 {[%clk 0:01:51]}  Be7 {[%clk 0:00:10]} 33. Nxe7 {[%clk 0:01:40]}  Kxe7 {[%clk 0:00:11]} 34. Rxb5 {[%clk 0:01:40]}  f6 {[%clk 0:00:12]} 35. Ke2 {[%clk 0:01:38]}  Kd6 {[%clk 0:00:08]} 36. Kd3 {[%clk 0:01:39]}  Kc6 {[%clk 0:00:03]} 37. Rf5 {[%clk 0:01:39]} 1-0


[Site "https://www.chess.com"]

[Event "Titled Tuesday Blitz July 4 Late 2023"]
[White "Hamidi, Amir Mohammad"]
[Black "Arnold, Ken"]
[WhiteFideId "12563285"]
[BlackFideId "2056836"]
[WhiteElo "2789"]
[BlackElo "2399"]
[Result "1-0"]
[Round "2"]
[TimeControl "180+2"]
[Date "2023.07.04"]
[WhiteClock "0:00:26"]
[BlackClock "0:00:13"]
[Board "110"]

1. d4 {[%clk 0:02:52]}  d5 {[%clk 0:02:59]} 2. c4 {[%clk 0:02:49]}  c6 {[%clk 0:02:59]} 3. Nf3 {[%clk 0:02:49]}  Nf6 {[%clk 0:02:58]} 4. Nc3 {[%clk 0:02:50]}  dxc4 {[%clk 0:02:58]} 5. a4 {[%clk 0:02:50]}  Bf5 {[%clk 0:02:57]} 6. Ne5 {[%clk 0:02:49]}  e6 {[%clk 0:02:56]} 7. f3 {[%clk 0:02:45]}  h6 {[%clk 0:02:54]} 8. e4 {[%clk 0:02:44]}  Bh7 {[%clk 0:02:54]} 9. Bxc4 {[%clk 0:02:44]}  Nbd7 {[%clk 0:02:42]} 10. Qb3 {[%clk 0:02:43]}  Qb6 {[%clk 0:02:35]} 11. Nxd7 {[%clk 0:01:46]}  Nxd7 {[%clk 0:02:27]} 12. Be3 {[%clk 0:01:47]}  Qxb3 {[%clk 0:02:25]} 13. Bxb3 {[%clk 0:01:46]}  Bb4 {[%clk 0:02:24]} 14. O-O {[%clk 0:01:41]}  O-O {[%clk 0:02:22]} 15. Rfd1 {[%clk 0:01:38]}  Nf6 {[%clk 0:02:11]} 16. Ne2 {[%clk 0:01:33]}  Rfd8 {[%clk 0:02:08]} 17. Nf4 {[%clk 0:01:33]}  g5 {[%clk 0:01:55]} 18. Nd3 {[%clk 0:01:27]}  Be7 {[%clk 0:01:54]} 19. a5 {[%clk 0:01:24]}  a6 {[%clk 0:01:45]} 20. Ne5 {[%clk 0:01:22]}  Nd7 {[%clk 0:01:39]} 21. Nc4 {[%clk 0:01:22]}  Rac8 {[%clk 0:01:20]} 22. Rac1 {[%clk 0:01:20]}  Bb4 {[%clk 0:01:19]} 23. h4 {[%clk 0:01:16]}  Be7 {[%clk 0:01:04]} 24. hxg5 {[%clk 0:01:16]}  hxg5 {[%clk 0:01:04]} 25. Kf2 {[%clk 0:01:15]}  c5 {[%clk 0:00:51]} 26. d5 {[%clk 0:01:12]}  exd5 {[%clk 0:00:51]} 27. Rxd5 {[%clk 0:01:11]}  Nf8 {[%clk 0:00:45]} 28. Rxg5+ {[%clk 0:01:05]}  Bxg5 {[%clk 0:00:44]} 29. Bxg5 {[%clk 0:01:06]}  Rd3 {[%clk 0:00:42]} 30. Nb6 {[%clk 0:01:01]}  Rxb3 {[%clk 0:00:40]} 31. Nxc8 {[%clk 0:01:01]}  Rxb2+ {[%clk 0:00:41]} 32. Kg3 {[%clk 0:01:01]}  Ne6 {[%clk 0:00:41]} 33. Bf6 {[%clk 0:01:00]}  Rb5 {[%clk 0:00:39]} 34. Nd6 {[%clk 0:00:55]}  Rxa5 {[%clk 0:00:38]} 35. Nxb7 {[%clk 0:00:54]}  Rb5 {[%clk 0:00:36]} 36. Nd6 {[%clk 0:00:54]}  Rb6 {[%clk 0:00:34]} 37. Nc8 {[%clk 0:00:53]}  Rb7 {[%clk 0:00:30]} 38. Ra1 {[%clk 0:00:51]}  Rc7 {[%clk 0:00:25]} 39. Ne7+ {[%clk 0:00:49]}  Kf8 {[%clk 0:00:24]} 40. Nd5 {[%clk 0:00:50]}  Rc6 {[%clk 0:00:24]} 41. Rh1 {[%clk 0:00:44]}  Bg8 {[%clk 0:00:22]} 42. Rh8 {[%clk 0:00:44]}  c4 {[%clk 0:00:21]} 43. Be7+ {[%clk 0:00:42]}  Kg7 {[%clk 0:00:21]} 44. Bf6+ {[%clk 0:00:39]}  Kf8 {[%clk 0:00:21]} 45. Ne7 {[%clk 0:00:28]}  Ke8 {[%clk 0:00:13]} 46. Rxg8+ {[%clk 0:00:26]} 1-0


[Site "https://www.chess.com"]

[Event "Titled Tuesday Blitz July 4 Late 2023"]
[White "Bochnicka, Vladimir"]
[Black "Boyer, Mahel"]
[WhiteFideId "14943450"]
[BlackFideId "45102422"]
[WhiteElo "2385"]
[BlackElo "2706"]
[Result "1-0"]
[Round "2"]
[TimeControl "180+2"]
[Date "2023.07.04"]
[WhiteClock "0:00:04"]
[BlackClock "0:00:13"]
[Board "113"]

1. e4 {[%clk 0:03:00]}  Nc6 {[%clk 0:02:57]} 2. Nf3 {[%clk 0:03:00]}  d5 {[%clk 0:02:58]} 3. exd5 {[%clk 0:02:59]}  Qxd5 {[%clk 0:02:59]} 4. Nc3 {[%clk 0:03:00]}  Qh5 {[%clk 0:02:59]} 5. d4 {[%clk 0:02:58]}  Bg4 {[%clk 0:03:00]} 6. Be2 {[%clk 0:02:55]}  O-O-O {[%clk 0:03:01]} 7. Be3 {[%clk 0:02:47]}  Nh6 {[%clk 0:03:00]} 8. h3 {[%clk 0:02:36]}  Nf5 {[%clk 0:02:38]} 9. O-O {[%clk 0:02:34]}  Nxe3 {[%clk 0:02:05]} 10. fxe3 {[%clk 0:02:34]}  Bxh3 {[%clk 0:01:55]} 11. gxh3 {[%clk 0:02:15]}  Qxh3 {[%clk 0:01:55]} 12. Rf2 {[%clk 0:02:02]}  Rd6 {[%clk 0:01:43]} 13. Bf1 {[%clk 0:01:40]}  Rg6+ {[%clk 0:01:38]} 14. Bg2 {[%clk 0:01:39]}  e6 {[%clk 0:01:27]} 15. Ne4 {[%clk 0:01:36]}  Be7 {[%clk 0:01:21]} 16. Nfg5 {[%clk 0:01:26]}  Qh4 {[%clk 0:01:21]} 17. Rf4 {[%clk 0:01:15]}  Bxg5 {[%clk 0:01:13]} 18. Rxh4 {[%clk 0:01:12]}  Bxh4 {[%clk 0:01:14]} 19. Qf3 {[%clk 0:01:08]}  f5 {[%clk 0:01:14]} 20. Nc5 {[%clk 0:01:00]}  Rg3 {[%clk 0:01:15]} 21. Qe2 {[%clk 0:00:58]}  Bg5 {[%clk 0:01:12]} 22. Qb5 {[%clk 0:00:49]}  Bxe3+ {[%clk 0:00:35]} 23. Kh2 {[%clk 0:00:49]}  Rxg2+ {[%clk 0:00:35]} 24. Kxg2 {[%clk 0:00:49]}  Nd8 {[%clk 0:00:36]} 25. Re1 {[%clk 0:00:44]}  f4 {[%clk 0:00:33]} 26. Qd7+ {[%clk 0:00:38]}  Kb8 {[%clk 0:00:33]} 27. Nxe6 {[%clk 0:00:38]}  Nxe6 {[%clk 0:00:33]} 28. Qxe6 {[%clk 0:00:39]}  a6 {[%clk 0:00:32]} 29. Rxe3 {[%clk 0:00:38]}  fxe3 {[%clk 0:00:32]} 30. Qxe3 {[%clk 0:00:39]}  Rf8 {[%clk 0:00:29]} 31. Qe7 {[%clk 0:00:36]}  Rf6 {[%clk 0:00:29]} 32. c4 {[%clk 0:00:31]}  Rb6 {[%clk 0:00:25]} 33. b4 {[%clk 0:00:30]}  Rd6 {[%clk 0:00:22]} 34. d5 {[%clk 0:00:27]}  b5 {[%clk 0:00:23]} 35. c5 {[%clk 0:00:17]}  Rxd5 {[%clk 0:00:23]} 36. Qxg7 {[%clk 0:00:16]}  Kb7 {[%clk 0:00:21]} 37. Qxh7 {[%clk 0:00:15]}  Rd4 {[%clk 0:00:21]} 38. a3 {[%clk 0:00:15]}  a5 {[%clk 0:00:21]} 39. bxa5 {[%clk 0:00:11]}  Rc4 {[%clk 0:00:20]} 40. Qe7 {[%clk 0:00:10]}  Kc6 {[%clk 0:00:17]} 41. a6 {[%clk 0:00:09]}  Ra4 {[%clk 0:00:18]} 42. Qe6+ {[%clk 0:00:06]}  Kxc5 {[%clk 0:00:18]} 43. Kf3 {[%clk 0:00:05]}  c6 {[%clk 0:00:17]} 44. Qe7+ {[%clk 0:00:04]}  Kd5 {[%clk 0:00:16]} 45. a7 {[%clk 0:00:05]}  Rxa3+ {[%clk 0:00:13]} 46. Kf4 {[%clk 0:00:04]}  Ra4+ {[%clk 0:00:12]} 47. Kf5 {[%clk 0:00:04]}  Kc4 {[%clk 0:00:11]} 48. Qb7 {[%clk 0:00:04]}  c5 {[%clk 0:00:09]} 49. a8=Q {[%clk 0:00:03]}  Rxa8 {[%clk 0:00:10]} 50. Qxa8 {[%clk 0:00:04]}  b4 {[%clk 0:00:11]} 51. Qe4+ {[%clk 0:00:04]}  Kc3 {[%clk 0:00:11]} 52. Qe3+ {[%clk 0:00:04]}  Kc4 {[%clk 0:00:09]} 53. Qc1+ {[%clk 0:00:05]}  Kd4 {[%clk 0:00:09]} 54. Qb2+ {[%clk 0:00:06]}  Kd3 {[%clk 0:00:09]} 55. Ke5 {[%clk 0:00:06]}  c4 {[%clk 0:00:08]} 56. Qxb4 {[%clk 0:00:06]}  c3 {[%clk 0:00:09]} 57. Qd6+ {[%clk 0:00:05]}  Ke2 {[%clk 0:00:09]} 58. Qc5 {[%clk 0:00:04]}  Kd2 {[%clk 0:00:10]} 59. Qb4 {[%clk 0:00:04]}  Kd3 {[%clk 0:00:10]} 60. Qb3 {[%clk 0:00:04]}  Kd2 {[%clk 0:00:10]} 61. Kd4 {[%clk 0:00:03]}  c2 {[%clk 0:00:11]} 62. Qe3+ {[%clk 0:00:03]}  Kd1 {[%clk 0:00:12]} 63. Qd3+ {[%clk 0:00:03]}  Kc1 {[%clk 0:00:12]} 64. Kc3 {[%clk 0:00:03]}  Kb1 {[%clk 0:00:12]} 65. Qxc2+ {[%clk 0:00:04]}  Ka1 {[%clk 0:00:13]} 66. Qb2# {[%clk 0:00:04]} 1-0


[Site "https://www.chess.com"]

[Event "Titled Tuesday Blitz July 4 Late 2023"]
[White "Koellner, Ruben Gideon"]
[Black "Campos, Maria Jose"]
[WhiteFideId "12993093"]
[BlackFideId "146803"]
[WhiteElo "2668"]
[BlackElo "2375"]
[Result "0-1"]
[Round "2"]
[TimeControl "180+2"]
[Date "2023.07.04"]
[WhiteClock "0:02:41"]
[BlackClock "0:01:54"]
[Board "117"]

1. d4 {[%clk 0:03:00]}  Nf6 {[%clk 0:02:55]} 2. Nf3 {[%clk 0:03:01]}  e6 {[%clk 0:02:55]} 3. Nbd2 {[%clk 0:03:02]}  d5 {[%clk 0:02:51]} 4. e3 {[%clk 0:03:02]}  Be7 {[%clk 0:02:46]} 5. Bd3 {[%clk 0:03:02]}  O-O {[%clk 0:02:45]} 6. O-O {[%clk 0:03:02]}  c5 {[%clk 0:02:45]} 7. c3 {[%clk 0:03:03]}  Nc6 {[%clk 0:02:46]} 8. dxc5 {[%clk 0:03:03]}  Bxc5 {[%clk 0:02:45]} 9. b4 {[%clk 0:03:03]}  Bd6 {[%clk 0:02:45]} 10. Bb2 {[%clk 0:03:04]}  b6 {[%clk 0:02:42]} 11. a3 {[%clk 0:03:04]}  Bb7 {[%clk 0:02:43]} 12. c4 {[%clk 0:03:05]}  Rc8 {[%clk 0:02:39]} 13. Rc1 {[%clk 0:03:05]}  Re8 {[%clk 0:02:38]} 14. Qe2 {[%clk 0:03:06]}  e5 {[%clk 0:02:37]} 15. Rfd1 {[%clk 0:03:06]}  e4 {[%clk 0:02:34]} 16. cxd5 {[%clk 0:02:59]}  exd3 {[%clk 0:02:28]} 17. Qxd3 {[%clk 0:02:59]}  Ne5 {[%clk 0:02:28]} 18. Nxe5 {[%clk 0:02:57]}  Bxe5 {[%clk 0:02:28]} 19. Bxe5 {[%clk 0:02:57]}  Rxe5 {[%clk 0:02:28]} 20. e4 {[%clk 0:02:55]}  Re8 {[%clk 0:02:27]} 21. Qd4 {[%clk 0:02:52]}  Qd6 {[%clk 0:02:23]} 22. g3 {[%clk 0:02:51]}  Ng4 {[%clk 0:02:19]} 23. h3 {[%clk 0:02:46]}  Ne5 {[%clk 0:02:16]} 24. f4 {[%clk 0:02:47]}  Ng6 {[%clk 0:02:15]} 25. Kh2 {[%clk 0:02:45]}  Rxc1 {[%clk 0:02:11]} 26. Rxc1 {[%clk 0:02:45]}  Qd7 {[%clk 0:02:10]} 27. Nf3 {[%clk 0:02:38]}  Bc8 {[%clk 0:02:04]} 28. d6 {[%clk 0:02:34]}  Qxh3+ {[%clk 0:02:04]} 29. Kg1 {[%clk 0:02:33]}  Qxg3+ {[%clk 0:02:04]} 30. Kf1 {[%clk 0:02:34]}  Qxf3+ {[%clk 0:02:04]} 31. Qf2 {[%clk 0:02:34]}  Bh3+ {[%clk 0:02:03]} 32. Kg1 {[%clk 0:02:34]}  Qxe4 {[%clk 0:01:58]} 33. Kh2 {[%clk 0:02:31]}  Bf5 {[%clk 0:01:56]} 34. Qd2 {[%clk 0:02:30]}  Qxf4+ {[%clk 0:01:53]} 35. Qxf4 {[%clk 0:02:30]}  Nxf4 {[%clk 0:01:54]} 36. Rf1 {[%clk 0:02:29]}  g5 {[%clk 0:01:54]} 37. Rg1 {[%clk 0:02:29]}  h6 {[%clk 0:01:54]} 38. Rc1 {[%clk 0:02:29]}  Rd8 {[%clk 0:01:55]} 39. Rc7 {[%clk 0:02:30]}  Rxd6 {[%clk 0:01:55]} 40. Rxa7 {[%clk 0:02:31]}  Rd3 {[%clk 0:01:55]} 41. Ra6 {[%clk 0:02:32]}  b5 {[%clk 0:01:55]} 42. Rb6 {[%clk 0:02:33]}  Bd7 {[%clk 0:01:54]} 43. Rb8+ {[%clk 0:02:34]}  Kg7 {[%clk 0:01:54]} 44. Rd8 {[%clk 0:02:34]}  Bf5 {[%clk 0:01:53]} 45. Rxd3 {[%clk 0:02:35]}  Nxd3 {[%clk 0:01:53]} 46. a4 {[%clk 0:02:36]}  bxa4 {[%clk 0:01:53]} 47. b5 {[%clk 0:02:37]}  a3 {[%clk 0:01:54]} 48. b6 {[%clk 0:02:38]}  Be4 {[%clk 0:01:54]} 49. b7 {[%clk 0:02:39]}  Bxb7 {[%clk 0:01:54]} 50. Kg3 {[%clk 0:02:39]}  a2 {[%clk 0:01:55]} 51. Kg4 {[%clk 0:02:40]}  a1=Q {[%clk 0:01:54]} 52. Kh5 {[%clk 0:02:41]}  Bf3# {[%clk 0:01:54]} 0-1


[Site "https://www.chess.com"]

[Event "Titled Tuesday Blitz July 4 Late 2023"]
[White "Martinez Ramirez, Lennis"]
[Black "micke12a"]
[WhiteFideId "3509079"]
[WhiteElo "2619"]
[BlackElo "2374"]
[Result "1/2-1/2"]
[Round "2"]
[TimeControl "180+2"]
[Date "2023.07.04"]
[WhiteClock "0:00:08"]
[BlackClock "0:00:06"]
[Board "120"]

1. c4 {[%clk 0:03:00]}  c5 {[%clk 0:02:57]} 2. Nc3 {[%clk 0:02:57]}  Nc6 {[%clk 0:02:55]} 3. g3 {[%clk 0:02:57]}  g6 {[%clk 0:02:55]} 4. Bg2 {[%clk 0:02:55]}  Bg7 {[%clk 0:02:55]} 5. e3 {[%clk 0:02:52]}  Nf6 {[%clk 0:02:54]} 6. Nge2 {[%clk 0:02:52]}  O-O {[%clk 0:02:47]} 7. d4 {[%clk 0:02:48]}  cxd4 {[%clk 0:02:40]} 8. exd4 {[%clk 0:02:48]}  d6 {[%clk 0:02:26]} 9. h3 {[%clk 0:02:43]}  e5 {[%clk 0:02:19]} 10. Be3 {[%clk 0:02:33]}  Re8 {[%clk 0:02:17]} 11. O-O {[%clk 0:02:32]}  Bd7 {[%clk 0:02:00]} 12. Nb5 {[%clk 0:01:40]}  Bc8 {[%clk 0:01:12]} 13. dxe5 {[%clk 0:01:32]}  dxe5 {[%clk 0:01:10]} 14. Nd6 {[%clk 0:01:31]}  Re6 {[%clk 0:01:05]} 15. c5 {[%clk 0:01:30]}  Bf8 {[%clk 0:00:56]} 16. Nc4 {[%clk 0:01:10]}  Qc7 {[%clk 0:00:41]} 17. Nc3 {[%clk 0:01:08]}  Nd4 {[%clk 0:00:34]} 18. b4 {[%clk 0:00:45]}  Nf5 {[%clk 0:00:30]} 19. Nb5 {[%clk 0:00:34]}  Qd7 {[%clk 0:00:29]} 20. Qxd7 {[%clk 0:00:28]}  Bxd7 {[%clk 0:00:26]} 21. Nc7 {[%clk 0:00:29]}  Nxe3 {[%clk 0:00:22]} 22. fxe3 {[%clk 0:00:24]}  Rb8 {[%clk 0:00:22]} 23. Nxe6 {[%clk 0:00:24]}  Bxe6 {[%clk 0:00:22]} 24. Nxe5 {[%clk 0:00:24]}  Be7 {[%clk 0:00:18]} 25. Rad1 {[%clk 0:00:23]}  Nh5 {[%clk 0:00:18]} 26. g4 {[%clk 0:00:23]}  Ng3 {[%clk 0:00:16]} 27. Rf3 {[%clk 0:00:22]}  Ne2+ {[%clk 0:00:16]} 28. Kf2 {[%clk 0:00:22]}  Nc3 {[%clk 0:00:16]} 29. Rd4 {[%clk 0:00:21]}  Bh4+ {[%clk 0:00:10]} 30. Kg1 {[%clk 0:00:20]}  Nxa2 {[%clk 0:00:08]} 31. e4 {[%clk 0:00:16]}  a5 {[%clk 0:00:05]} 32. b5 {[%clk 0:00:15]}  Nb4 {[%clk 0:00:05]} 33. c6 {[%clk 0:00:15]}  bxc6 {[%clk 0:00:05]} 34. Nxc6 {[%clk 0:00:16]}  Nxc6 {[%clk 0:00:05]} 35. bxc6 {[%clk 0:00:17]}  Rb1+ {[%clk 0:00:05]} 36. Rf1 {[%clk 0:00:16]}  Rb2 {[%clk 0:00:06]} 37. c7 {[%clk 0:00:15]}  Rc2 {[%clk 0:00:06]} 38. Rd8+ {[%clk 0:00:15]}  Kg7 {[%clk 0:00:05]} 39. Ra8 {[%clk 0:00:14]}  Rxc7 {[%clk 0:00:04]} 40. Rxa5 {[%clk 0:00:14]}  Be7 {[%clk 0:00:03]} 41. e5 {[%clk 0:00:13]}  Rc2 {[%clk 0:00:03]} 42. Bd5 {[%clk 0:00:13]}  Bc5+ {[%clk 0:00:04]} 43. Rxc5 {[%clk 0:00:12]}  Rxc5 {[%clk 0:00:04]} 44. Bxe6 {[%clk 0:00:13]}  fxe6 {[%clk 0:00:05]} 45. Re1 {[%clk 0:00:13]}  Rc2 {[%clk 0:00:05]} 46. Rd1 {[%clk 0:00:12]}  Rc5 {[%clk 0:00:05]} 47. Rd7+ {[%clk 0:00:12]}  Kh6 {[%clk 0:00:05]} 48. h4 {[%clk 0:00:12]}  Rxe5 {[%clk 0:00:05]} 49. g5+ {[%clk 0:00:12]}  Kh5 {[%clk 0:00:06]} 50. Rxh7+ {[%clk 0:00:13]}  Kg4 {[%clk 0:00:06]} 51. Kf2 {[%clk 0:00:13]}  Rf5+ {[%clk 0:00:06]} 52. Ke3 {[%clk 0:00:13]}  e5 {[%clk 0:00:06]} 53. Ke4 {[%clk 0:00:13]}  Rf2 {[%clk 0:00:03]} 54. Kxe5 {[%clk 0:00:13]}  Rf3 {[%clk 0:00:03]} 55. Ke6 {[%clk 0:00:13]}  Rf4 {[%clk 0:00:03]} 56. Rh6 {[%clk 0:00:12]}  Rf1 {[%clk 0:00:02]} 57. Rxg6 {[%clk 0:00:12]}  Kxh4 {[%clk 0:00:02]} 58. Rg8 {[%clk 0:00:11]}  Kh5 {[%clk 0:00:03]} 59. Ke5 {[%clk 0:00:11]}  Rf2 {[%clk 0:00:02]} 60. Ke6 {[%clk 0:00:11]}  Rf1 {[%clk 0:00:02]} 61. g6 {[%clk 0:00:11]}  Kh6 {[%clk 0:00:02]} 62. Ke7 {[%clk 0:00:11]}  Rf2 {[%clk 0:00:02]} 63. g7 {[%clk 0:00:12]}  Kh7 {[%clk 0:00:03]} 64. Rf8 {[%clk 0:00:11]}  Re2+ {[%clk 0:00:03]} 65. Kf7 {[%clk 0:00:12]}  Rf2+ {[%clk 0:00:04]} 66. Ke7 {[%clk 0:00:12]}  Re2+ {[%clk 0:00:04]} 67. Kf6 {[%clk 0:00:12]}  Rf2+ {[%clk 0:00:05]} 68. Ke6 {[%clk 0:00:11]}  Re2+ {[%clk 0:00:05]} 69. Kf6 {[%clk 0:00:09]}  Rf2+ {[%clk 0:00:06]} 70. Ke7 {[%clk 0:00:08]} 1/2-1/2


[Site "https://www.chess.com"]